[Event "*** SCC Grand Prix: Titled Tuesday Blitz"]
[Site "Chess.com"]
[Date "2020.10.13"]
[Round "8"]
[White "tylityli"]
[Black "googlegoom"]
[Result "0-1"]
[WhiteElo "2217"]
[BlackElo "2378"]
[TimeControl "180+1"]
[EndTime "11:34:56 PDT"]
[Termination "googlegoom won on time"]

1. d4 {[%clk 0:02:51.9]} 1... d5 {[%clk 0:02:51.4]} 2. c4 {[%clk 0:02:51.3]}
2... c6 {[%clk 0:02:51.4]} 3. cxd5 {[%clk 0:02:50.8]} 3... cxd5 {[%clk
0:02:51.2]} 4. Bf4 {[%clk 0:02:50.8]} 4... Nf6 {[%clk 0:02:45.4]} 5. e3 {[%clk
0:02:50.6]} 5... e6 {[%clk 0:02:45.6]} 6. Nc3 {[%clk 0:02:49.5]} 6... Nc6 {[%clk
0:02:45.9]} 7. Bd3 {[%clk 0:02:48.8]} 7... Be7 {[%clk 0:02:46.2]} 8. Nf3 {[%clk
0:02:47.6]} 8... Bd7 {[%clk 0:02:45.4]} 9. h3 {[%clk 0:02:47.7]} 9... Rc8 {[%clk
0:02:44.9]} 10. Rc1 {[%clk 0:02:47.3]} 10... O-O {[%clk 0:02:44.2]} 11. O-O
{[%clk 0:02:46]} 11... Na5 {[%clk 0:02:44.4]} 12. Ne5 {[%clk 0:02:43.3]} 12...
Nc4 {[%clk 0:02:44.3]} 13. b3 {[%clk 0:02:40.1]} 13... Nd6 {[%clk 0:02:41.2]}
14. f3 {[%clk 0:02:29]} 14... a6 {[%clk 0:02:35.5]} 15. g4 {[%clk 0:02:25.9]}
15... h6 {[%clk 0:02:18.6]} 16. Nxd7 {[%clk 0:02:18.3]} 16... Qxd7 {[%clk
0:02:12.4]} 17. Na4 {[%clk 0:02:18.3]} 17... Rxc1 {[%clk 0:02:02]} 18. Qxc1
{[%clk 0:02:19.2]} 18... Rc8 {[%clk 0:02:01.9]} 19. Nc5 {[%clk 0:02:11.4]} 19...
Qc6 {[%clk 0:01:55.9]} 20. Qd2 {[%clk 0:02:08.7]} 20... Nb5 {[%clk 0:01:51.5]}
21. a4 {[%clk 0:02:03.2]} 21... Na7 {[%clk 0:01:45.7]} 22. b4 {[%clk 0:02:02.1]}
22... Bxc5 {[%clk 0:01:39.9]} 23. dxc5 {[%clk 0:01:57.2]} 23... Qxa4 {[%clk
0:01:39.1]} 24. Be5 {[%clk 0:01:55.1]} 24... Nd7 {[%clk 0:01:37.8]} 25. Bc3
{[%clk 0:01:52.3]} 25... Qc6 {[%clk 0:01:32.6]} 26. Qb2 {[%clk 0:01:49.8]} 26...
f6 {[%clk 0:01:26.3]} 27. Bb1 {[%clk 0:01:44.5]} 27... Nb5 {[%clk 0:01:23.3]}
28. Qc2 {[%clk 0:01:31.2]} 28... Nf8 {[%clk 0:01:22.9]} 29. Bb2 {[%clk
0:01:28.3]} 29... a5 {[%clk 0:01:12.7]} 30. Qb3 {[%clk 0:01:05.8]} 30... axb4
{[%clk 0:01:08.1]} 31. Rc1 {[%clk 0:01:05.1]} 31... Nc7 {[%clk 0:00:55.8]} 32.
Qxb4 {[%clk 0:01:04]} 32... Na6 {[%clk 0:00:55.8]} 33. Qf4 {[%clk 0:00:49.7]}
33... Nxc5 {[%clk 0:00:54.8]} 34. Bxf6 {[%clk 0:00:48.5]} 34... gxf6 {[%clk
0:00:50.7]} 35. Qxf6 {[%clk 0:00:45.1]} 35... Qd7 {[%clk 0:00:38.2]} 36. Qxh6
{[%clk 0:00:40]} 36... Qg7 {[%clk 0:00:38]} 37. Qf4 {[%clk 0:00:36.2]} 37... Nd3
{[%clk 0:00:29.8]} 38. Bxd3 {[%clk 0:00:21.5]} 38... Rxc1+ {[%clk 0:00:28.5]}
39. Kf2 {[%clk 0:00:22.4]} 39... Rc8 {[%clk 0:00:22.4]} 40. h4 {[%clk
0:00:20.3]} 40... Rd8 {[%clk 0:00:17.6]} 41. h5 {[%clk 0:00:19.9]} 41... e5
{[%clk 0:00:14.2]} 42. Qf5 {[%clk 0:00:17.8]} 42... Rd6 {[%clk 0:00:14]} 43. g5
{[%clk 0:00:16.5]} 43... Qf7 {[%clk 0:00:11.9]} 44. Qg4 {[%clk 0:00:15.6]} 44...
e4 {[%clk 0:00:12.1]} 45. Be2 {[%clk 0:00:13.1]} 45... exf3 {[%clk 0:00:11.1]}
46. Bxf3 {[%clk 0:00:14]} 46... d4 {[%clk 0:00:09.4]} 47. exd4 {[%clk
0:00:12.8]} 47... Qe6 {[%clk 0:00:08.3]} 48. Qf4 {[%clk 0:00:10.9]} 48... Qa2+
{[%clk 0:00:06.5]} 49. Kg3 {[%clk 0:00:10.2]} 49... Qe6 {[%clk 0:00:06.7]} 50.
g6 {[%clk 0:00:09.1]} 50... Qf6 {[%clk 0:00:07.1]} 51. Qe4 {[%clk 0:00:06.7]}
51... Rxd4 {[%clk 0:00:06.8]} 52. Qxb7 {[%clk 0:00:05.3]} 52... Qf4+ {[%clk
0:00:06.9]} 53. Kg2 {[%clk 0:00:05.2]} 53... Rd2+ {[%clk 0:00:06.6]} 54. Kf1
{[%clk 0:00:03.4]} 54... Nd7 {[%clk 0:00:02.2]} 55. Qc8+ {[%clk 0:00:01.9]}
55... Kg7 {[%clk 0:00:02.8]} 56. Qb7 {[%clk 0:00:01.2]} 56... Qe3 {[%clk
0:00:02.2]} 0-1

[Event "*** SCC Grand Prix: Titled Tuesday Blitz"]
[Site "Chess.com"]
[Date "2020.10.13"]
[Round "8"]
[White "Nikita_Klepikov"]
[Black "JuliaEfremova"]
[Result "1/2-1/2"]
[WhiteElo "2257"]
[BlackElo "2328"]
[TimeControl "180+1"]
[EndTime "11:34:57 PDT"]
[Termination "Game drawn - insufficient material"]

1. e4 {[%clk 0:03:00.6]} 1... d5 {[%clk 0:02:59.2]} 2. exd5 {[%clk 0:03:00.5]}
2... Qxd5 {[%clk 0:03:00.1]} 3. Nc3 {[%clk 0:03:00.5]} 3... Qa5 {[%clk
0:03:00.1]} 4. d4 {[%clk 0:03:01.1]} 4... Nf6 {[%clk 0:03:00.2]} 5. Bd2 {[%clk
0:03:01.8]} 5... c6 {[%clk 0:02:53.3]} 6. Bc4 {[%clk 0:03:00.6]} 6... Qc7 {[%clk
0:02:50.1]} 7. Nf3 {[%clk 0:03:00.5]} 7... Bg4 {[%clk 0:02:48.6]} 8. h3 {[%clk
0:03:00.8]} 8... Bh5 {[%clk 0:02:46.3]} 9. Qe2 {[%clk 0:03:00.9]} 9... Nbd7
{[%clk 0:02:41]} 10. g4 {[%clk 0:02:59.5]} 10... Bg6 {[%clk 0:02:40]} 11. O-O-O
{[%clk 0:02:55.8]} 11... e6 {[%clk 0:02:38.6]} 12. Ne5 {[%clk 0:02:46.5]} 12...
O-O-O {[%clk 0:02:36]} 13. f4 {[%clk 0:02:37.1]} 13... Bd6 {[%clk 0:02:28.6]}
14. f5 {[%clk 0:02:24.7]} 14... exf5 {[%clk 0:02:27.9]} 15. gxf5 {[%clk
0:02:24.9]} 15... Bh5 {[%clk 0:02:27.4]} 16. Ng4 {[%clk 0:02:14]} 16... Bf4
{[%clk 0:02:17.4]} 17. Rhg1 {[%clk 0:02:02]} 17... Nb6 {[%clk 0:02:11.5]} 18.
Bb3 {[%clk 0:01:12.7]} 18... Nbd5 {[%clk 0:02:05.4]} 19. Kb1 {[%clk 0:00:48.8]}
19... Rhe8 {[%clk 0:01:55.2]} 20. Qf2 {[%clk 0:00:48.8]} 20... Bxd2 {[%clk
0:01:50.2]} 21. Rxd2 {[%clk 0:00:44.5]} 21... Nxc3+ {[%clk 0:01:50.1]} 22. bxc3
{[%clk 0:00:44.5]} 22... Ne4 {[%clk 0:01:50.4]} 23. Qg2 {[%clk 0:00:37.8]} 23...
Nxd2+ {[%clk 0:01:44.8]} 24. Qxd2 {[%clk 0:00:38.7]} 24... Bxg4 {[%clk
0:01:44.4]} 25. hxg4 {[%clk 0:00:30.2]} 25... h6 {[%clk 0:01:36.8]} 26. g5
{[%clk 0:00:25.4]} 26... hxg5 {[%clk 0:01:36.8]} 27. Rxg5 {[%clk 0:00:24.6]}
27... g6 {[%clk 0:01:13.1]} 28. fxg6 {[%clk 0:00:19.5]} 28... fxg6 {[%clk
0:01:14]} 29. Rxg6 {[%clk 0:00:19.5]} 29... Re7 {[%clk 0:01:13.7]} 30. Qg5
{[%clk 0:00:14.7]} 30... Rde8 {[%clk 0:01:12.6]} 31. Rg8 {[%clk 0:00:14.9]}
31... Rxg8 {[%clk 0:01:10.8]} 32. Qxg8+ {[%clk 0:00:15.1]} 32... Qd8 {[%clk
0:01:09.8]} 33. Be6+ {[%clk 0:00:10.8]} 33... Kc7 {[%clk 0:01:10.1]} 34. Qg3+
{[%clk 0:00:10.8]} 34... Qd6 {[%clk 0:01:10.3]} 35. Qxd6+ {[%clk 0:00:09.4]}
35... Kxd6 {[%clk 0:01:11.2]} 36. Bc4 {[%clk 0:00:10.1]} 36... b5 {[%clk
0:01:04]} 37. Bd3 {[%clk 0:00:07.6]} 37... Kd5 {[%clk 0:01:00.3]} 38. Kb2 {[%clk
0:00:07.7]} 38... Re1 {[%clk 0:00:59.3]} 39. a3 {[%clk 0:00:05.5]} 39... a6
{[%clk 0:00:57.4]} 40. Ka2 {[%clk 0:00:05.7]} 40... c5 {[%clk 0:00:57.7]} 41.
dxc5 {[%clk 0:00:05.6]} 41... Kxc5 {[%clk 0:00:58.6]} 42. Kb2 {[%clk 0:00:05.9]}
42... a5 {[%clk 0:00:57]} 43. Ka2 {[%clk 0:00:05.9]} 43... b4 {[%clk 0:00:53.7]}
44. cxb4+ {[%clk 0:00:05.6]} 44... axb4 {[%clk 0:00:54.6]} 45. axb4+ {[%clk
0:00:06.1]} 45... Kxb4 {[%clk 0:00:55]} 46. Kb2 {[%clk 0:00:06.6]} 46... Rg1
{[%clk 0:00:54.1]} 47. Bh7 {[%clk 0:00:06.5]} 47... Rg2 {[%clk 0:00:53.5]} 48.
Bd3 {[%clk 0:00:07.1]} 48... Rf2 {[%clk 0:00:52.8]} 49. Be4 {[%clk 0:00:01.6]}
49... Kc5 {[%clk 0:00:53.7]} 50. Bd3 {[%clk 0:00:02]} 50... Kd4 {[%clk
0:00:54.6]} 51. Bh7 {[%clk 0:00:02]} 51... Ke3 {[%clk 0:00:55.5]} 52. Bd3 {[%clk
0:00:02.5]} 52... Kd2 {[%clk 0:00:56.4]} 53. Bh7 {[%clk 0:00:02.9]} 53... Kd1
{[%clk 0:00:57.3]} 54. Bd3 {[%clk 0:00:03.5]} 54... Rh2 {[%clk 0:00:55.8]} 55.
Bg6 {[%clk 0:00:03.6]} 55... Rh6 {[%clk 0:00:52.5]} 56. Bd3 {[%clk 0:00:03.7]}
56... Rb6+ {[%clk 0:00:53.4]} 57. Kc3 {[%clk 0:00:03.9]} 57... Kc1 {[%clk
0:00:53.6]} 58. Kd4 {[%clk 0:00:04]} 58... Kb2 {[%clk 0:00:50.5]} 59. c4 {[%clk
0:00:04.4]} 59... Kb3 {[%clk 0:00:48.7]} 60. Kc5 {[%clk 0:00:04]} 60... Rh6
{[%clk 0:00:46.7]} 61. Be4 {[%clk 0:00:03.9]} 61... Kc3 {[%clk 0:00:44.8]} 62.
Bd5 {[%clk 0:00:04.3]} 62... Rh5 {[%clk 0:00:43]} 63. Kb5 {[%clk 0:00:05]} 63...
Kd4 {[%clk 0:00:42.6]} 64. Kc6 {[%clk 0:00:05.5]} 64... Rh6+ {[%clk 0:00:41.4]}
65. Kb5 {[%clk 0:00:05.9]} 65... Rd6 {[%clk 0:00:40.1]} 66. Ka5 {[%clk
0:00:06.1]} 66... Kc5 {[%clk 0:00:39.8]} 67. Ka4 {[%clk 0:00:05.9]} 67... Rh6
{[%clk 0:00:37.4]} 68. Kb3 {[%clk 0:00:06.2]} 68... Rh3+ {[%clk 0:00:35.8]} 69.
Ka4 {[%clk 0:00:05.6]} 69... Rc3 {[%clk 0:00:34.2]} 70. Bf7 {[%clk 0:00:05.4]}
70... Re3 {[%clk 0:00:30]} 71. Bd5 {[%clk 0:00:05.5]} 71... Rc3 {[%clk 0:00:28]}
72. Bf7 {[%clk 0:00:05.5]} 72... Rxc4+ {[%clk 0:00:28.9]} 73. Bxc4 {[%clk
0:00:03.7]} 1/2-1/2

[Event "*** SCC Grand Prix: Titled Tuesday Blitz"]
[Site "Chess.com"]
[Date "2020.10.13"]
[Round "8"]
[White "Gulkov_Igor"]
[Black "tlomigtlis"]
[Result "1-0"]
[WhiteElo "2485"]
[BlackElo "2629"]
[TimeControl "180+1"]
[EndTime "11:35:02 PDT"]
[Termination "Gulkov_Igor won by checkmate"]

1. Nf3 {[%clk 0:03:00.9]} 1... Nf6 {[%clk 0:02:58.6]} 2. c4 {[%clk 0:03:00.3]}
2... c6 {[%clk 0:02:58.6]} 3. Nc3 {[%clk 0:03:00]} 3... d5 {[%clk 0:02:59.2]} 4.
d4 {[%clk 0:03:00.3]} 4... e6 {[%clk 0:02:58.9]} 5. Bg5 {[%clk 0:02:59.4]} 5...
Nbd7 {[%clk 0:02:58.9]} 6. cxd5 {[%clk 0:02:58.5]} 6... cxd5 {[%clk 0:02:53.1]}
7. e3 {[%clk 0:02:58.8]} 7... Bd6 {[%clk 0:02:52.7]} 8. Bd3 {[%clk 0:02:58.6]}
8... O-O {[%clk 0:02:52.2]} 9. O-O {[%clk 0:02:58.4]} 9... h6 {[%clk 0:02:52.3]}
10. Bh4 {[%clk 0:02:56.2]} 10... a6 {[%clk 0:02:52.4]} 11. Rc1 {[%clk
0:02:55.3]} 11... b5 {[%clk 0:02:49.8]} 12. Bg3 {[%clk 0:02:51.1]} 12... Qe7
{[%clk 0:02:47.2]} 13. a4 {[%clk 0:02:41]} 13... b4 {[%clk 0:02:46.2]} 14. Nb1
{[%clk 0:02:38.8]} 14... Bb7 {[%clk 0:02:45.5]} 15. a5 {[%clk 0:02:30.9]} 15...
Ne4 {[%clk 0:02:35.9]} 16. Bxd6 {[%clk 0:02:25.8]} 16... Qxd6 {[%clk 0:02:34.3]}
17. Qa4 {[%clk 0:02:24.4]} 17... Rac8 {[%clk 0:02:32.4]} 18. Nbd2 {[%clk
0:02:23.3]} 18... Ndf6 {[%clk 0:02:25.5]} 19. Bxe4 {[%clk 0:02:15.3]} 19... dxe4
{[%clk 0:02:20.3]} 20. Ne5 {[%clk 0:02:13.3]} 20... Bd5 {[%clk 0:02:13]} 21.
Ndc4 {[%clk 0:02:01.3]} 21... Qe7 {[%clk 0:02:05.8]} 22. Nb6 {[%clk 0:01:57.2]}
22... Rxc1 {[%clk 0:01:46.3]} 23. Rxc1 {[%clk 0:01:56.3]} 23... Rd8 {[%clk
0:01:34.2]} 24. Qc2 {[%clk 0:01:45.1]} 24... Ne8 {[%clk 0:01:24.2]} 25. Qc5
{[%clk 0:01:38.5]} 25... Qxc5 {[%clk 0:01:11.3]} 26. Rxc5 {[%clk 0:01:33.7]}
26... f6 {[%clk 0:01:10.6]} 27. Nc6 {[%clk 0:01:16.5]} 27... Bxc6 {[%clk
0:00:58.7]} 28. Rxc6 {[%clk 0:01:16.4]} 28... Nd6 {[%clk 0:00:57.4]} 29. h4
{[%clk 0:01:03.6]} 29... Nf5 {[%clk 0:00:31]} 30. g3 {[%clk 0:01:01.8]} 30...
Kf7 {[%clk 0:00:27]} 31. Nc4 {[%clk 0:00:46.2]} 31... Ra8 {[%clk 0:00:20.8]} 32.
Kg2 {[%clk 0:00:40]} 32... Ne7 {[%clk 0:00:19.6]} 33. Rc7 {[%clk 0:00:39.8]}
33... Kf8 {[%clk 0:00:19.3]} 34. Nd6 {[%clk 0:00:39.8]} 34... Nd5 {[%clk
0:00:18.7]} 35. Rc5 {[%clk 0:00:36.4]} 35... Rd8 {[%clk 0:00:18.2]} 36. Nxe4
{[%clk 0:00:36.2]} 36... Rb8 {[%clk 0:00:17.3]} 37. b3 {[%clk 0:00:32.1]} 37...
Ke7 {[%clk 0:00:15.1]} 38. Kf3 {[%clk 0:00:31.8]} 38... f5 {[%clk 0:00:14.5]}
39. Nd2 {[%clk 0:00:31.3]} 39... Nc3 {[%clk 0:00:14]} 40. Nc4 {[%clk 0:00:30.5]}
40... Nd5 {[%clk 0:00:08.5]} 41. Ne5 {[%clk 0:00:27.7]} 41... Rb7 {[%clk
0:00:04.3]} 42. Rc6 {[%clk 0:00:27.4]} 42... Ra7 {[%clk 0:00:03.1]} 43. Rc5
{[%clk 0:00:24.5]} 43... Kf6 {[%clk 0:00:03.1]} 44. Nc6 {[%clk 0:00:23]} 44...
Rb7 {[%clk 0:00:03.5]} 45. Ne5 {[%clk 0:00:23.1]} 45... Ra7 {[%clk 0:00:03.5]}
46. Nc4 {[%clk 0:00:23.4]} 46... Rb7 {[%clk 0:00:03.7]} 47. Rc6 {[%clk
0:00:22.7]} 47... Ra7 {[%clk 0:00:03.2]} 48. Nb6 {[%clk 0:00:22.2]} 48... Nxb6
{[%clk 0:00:02.1]} 49. Rxb6 {[%clk 0:00:19.1]} 49... g5 {[%clk 0:00:02.6]} 50.
hxg5+ {[%clk 0:00:18.3]} 50... hxg5 {[%clk 0:00:03.5]} 51. Rxb4 {[%clk
0:00:18.6]} 51... g4+ {[%clk 0:00:04.4]} 52. Ke2 {[%clk 0:00:18.3]} 52... Rc7
{[%clk 0:00:04.4]} 53. Rb6 {[%clk 0:00:18.3]} 53... Rc2+ {[%clk 0:00:04.5]} 54.
Kf1 {[%clk 0:00:18.1]} 54... Rc1+ {[%clk 0:00:04.7]} 55. Kg2 {[%clk 0:00:18.2]}
55... Rb1 {[%clk 0:00:04.5]} 56. b4 {[%clk 0:00:17.3]} 56... Rb2 {[%clk
0:00:03.6]} 57. d5 {[%clk 0:00:17.4]} 57... Kg5 {[%clk 0:00:02.2]} 58. Rxe6
{[%clk 0:00:17.2]} 58... Rc2 {[%clk 0:00:02.8]} 59. Rxa6 {[%clk 0:00:17.3]}
59... Rb2 {[%clk 0:00:02.7]} 60. Rb6 {[%clk 0:00:16.6]} 60... f4 {[%clk
0:00:02.8]} 61. exf4+ {[%clk 0:00:16.4]} 61... Kf5 {[%clk 0:00:03.2]} 62. a6
{[%clk 0:00:16.2]} 62... Ra2 {[%clk 0:00:02.9]} 63. b5 {[%clk 0:00:16.3]} 63...
Ke4 {[%clk 0:00:03.3]} 64. Rb7 {[%clk 0:00:16.7]} 64... Kd3 {[%clk 0:00:03.6]}
65. a7 {[%clk 0:00:17.1]} 65... Ke2 {[%clk 0:00:03.8]} 66. Re7+ {[%clk
0:00:16.3]} 66... Kd3 {[%clk 0:00:03.3]} 67. d6 {[%clk 0:00:16.6]} 67... Kc4
{[%clk 0:00:03.3]} 68. d7 {[%clk 0:00:16.6]} 68... Kxb5 {[%clk 0:00:02.3]} 69.
d8=Q {[%clk 0:00:16.6]} 69... Kc4 {[%clk 0:00:02.1]} 70. Qc7+ {[%clk 0:00:15.6]}
70... Kd3 {[%clk 0:00:01.7]} 71. Re3+ {[%clk 0:00:15.5]} 71... Kd2 {[%clk
0:00:01.9]} 72. Qc3+ {[%clk 0:00:15.6]} 72... Kd1 {[%clk 0:00:02.8]} 73. Re1#
{[%clk 0:00:15.7]} 1-0

[Event "*** SCC Grand Prix: Titled Tuesday Blitz"]
[Site "Chess.com"]
[Date "2020.10.13"]
[Round "8"]
[White "Leonid_Starozhilov"]
[Black "Fandorine"]
[Result "0-1"]
[WhiteElo "2644"]
[BlackElo "2854"]
[TimeControl "180+1"]
[EndTime "11:35:11 PDT"]
[Termination "Fandorine won by resignation"]

1. e4 {[%clk 0:03:00.9]} 1... g6 {[%clk 0:02:59.6]} 2. d4 {[%clk 0:03:00.6]}
2... Bg7 {[%clk 0:02:59.8]} 3. c4 {[%clk 0:03:01.3]} 3... d6 {[%clk 0:03:00.1]}
4. Nc3 {[%clk 0:03:01.8]} 4... Nf6 {[%clk 0:03:00.7]} 5. f3 {[%clk 0:03:02.4]}
5... O-O {[%clk 0:03:01.2]} 6. Be3 {[%clk 0:03:03.1]} 6... a6 {[%clk 0:03:01.9]}
7. Qd2 {[%clk 0:03:02]} 7... Nbd7 {[%clk 0:03:02]} 8. Nge2 {[%clk 0:02:57]} 8...
b5 {[%clk 0:03:00.5]} 9. Ng3 {[%clk 0:02:54.7]} 9... c6 {[%clk 0:02:55.9]} 10.
Be2 {[%clk 0:02:45.6]} 10... e5 {[%clk 0:02:54.4]} 11. O-O {[%clk 0:02:38.9]}
11... bxc4 {[%clk 0:02:53.3]} 12. Bxc4 {[%clk 0:02:36.7]} 12... d5 {[%clk
0:02:52.2]} 13. exd5 {[%clk 0:02:34.4]} 13... Nb6 {[%clk 0:02:52.2]} 14. Bb3
{[%clk 0:02:32.9]} 14... Nfxd5 {[%clk 0:02:52.2]} 15. Nxd5 {[%clk 0:02:25.6]}
15... Nxd5 {[%clk 0:02:50.5]} 16. Bxd5 {[%clk 0:02:15.5]} 16... Qxd5 {[%clk
0:02:45.7]} 17. dxe5 {[%clk 0:02:15.6]} 17... Qxe5 {[%clk 0:02:40.3]} 18. b3
{[%clk 0:01:28]} 18... Be6 {[%clk 0:02:39.2]} 19. Rad1 {[%clk 0:01:14.2]} 19...
a5 {[%clk 0:02:32]} 20. Bd4 {[%clk 0:01:10.7]} 20... Qxd4+ {[%clk 0:02:30.3]}
21. Qxd4 {[%clk 0:01:11.6]} 21... Bxd4+ {[%clk 0:02:30.8]} 22. Rxd4 {[%clk
0:01:12.5]} 22... Rfd8 {[%clk 0:02:23.5]} 23. Rfd1 {[%clk 0:01:03.3]} 23... Rd5
{[%clk 0:02:07]} 24. Ne4 {[%clk 0:01:01.2]} 24... Kg7 {[%clk 0:02:06.9]} 25. Nc3
{[%clk 0:00:58.2]} 25... Rc5 {[%clk 0:02:03.5]} 26. Na4 {[%clk 0:00:58.4]} 26...
Rb5 {[%clk 0:01:57.3]} 27. Rc1 {[%clk 0:00:56]} 27... Bd5 {[%clk 0:01:53.7]} 28.
Kf2 {[%clk 0:00:47.7]} 28... h5 {[%clk 0:01:51.9]} 29. h4 {[%clk 0:00:47.3]}
29... Rb4 {[%clk 0:01:23.8]} 30. Rcd1 {[%clk 0:00:32.9]} 30... Rb7 {[%clk
0:01:19.5]} 31. Rc1 {[%clk 0:00:29]} 31... Rb4 {[%clk 0:00:59.2]} 32. Rcd1
{[%clk 0:00:28.6]} 32... Be6 {[%clk 0:00:42.6]} 33. Rxb4 {[%clk 0:00:16.2]}
33... axb4 {[%clk 0:00:43.5]} 34. Rd4 {[%clk 0:00:16.7]} 34... Rb8 {[%clk
0:00:23.8]} 35. Nc5 {[%clk 0:00:14.7]} 35... Bf5 {[%clk 0:00:24.3]} 36. Na4
{[%clk 0:00:04.4]} 36... Bb1 {[%clk 0:00:20.7]} 37. Rd2 {[%clk 0:00:03.7]} 37...
Rb5 {[%clk 0:00:21.2]} 38. Kg3 {[%clk 0:00:04]} 38... c5 {[%clk 0:00:17.3]} 39.
Rb2 {[%clk 0:00:04.6]} 39... Bf5 {[%clk 0:00:15]} 40. Rd2 {[%clk 0:00:05.3]}
40... Be6 {[%clk 0:00:08]} 41. Rc2 {[%clk 0:00:05.6]} 41... c4 {[%clk
0:00:08.1]} 42. bxc4 {[%clk 0:00:06]} 42... Ra5 {[%clk 0:00:08.6]} 43. Nb6
{[%clk 0:00:06.3]} 43... Rc5 {[%clk 0:00:08.8]} 44. Kf2 {[%clk 0:00:04.3]} 44...
Kf6 {[%clk 0:00:09]} 45. Ke3 {[%clk 0:00:04.5]} 45... Ke5 {[%clk 0:00:09.4]} 46.
f4+ {[%clk 0:00:04]} 46... Kd6 {[%clk 0:00:08.6]} 47. Kd4 {[%clk 0:00:04.6]}
47... Kc6 {[%clk 0:00:09.1]} 48. Na4 {[%clk 0:00:04.4]} 48... Ra5 {[%clk
0:00:09.4]} 49. Nb2 {[%clk 0:00:02.9]} 49... Rxa2 {[%clk 0:00:09.8]} 50. Nd3
{[%clk 0:00:02.9]} 50... Ra4 {[%clk 0:00:06.8]} 51. Rb2 {[%clk 0:00:03.4]} 51...
b3 {[%clk 0:00:07.3]} 52. Ne5+ {[%clk 0:00:02.9]} 52... Kc7 {[%clk 0:00:04.6]}
53. Rxb3 {[%clk 0:00:03.3]} 53... f6 {[%clk 0:00:05.2]} 54. Nd3 {[%clk
0:00:03.4]} 54... Rxc4+ {[%clk 0:00:05.4]} 55. Ke3 {[%clk 0:00:03.8]} 55... Bd5
{[%clk 0:00:03.1]} 56. g3 {[%clk 0:00:03.5]} 56... Re4+ {[%clk 0:00:03.1]} 57.
Kd2 {[%clk 0:00:03.8]} 57... Bxb3 {[%clk 0:00:03]} 58. Nc5 {[%clk 0:00:03.9]}
58... Rc4 {[%clk 0:00:02.5]} 59. Nxb3 {[%clk 0:00:03.8]} 59... Kd6 {[%clk
0:00:03.1]} 60. Kd3 {[%clk 0:00:04.4]} 60... Kd5 {[%clk 0:00:03.4]} 61. Nd2
{[%clk 0:00:04.7]} 61... Rd4+ {[%clk 0:00:03.8]} 62. Ke3 {[%clk 0:00:05.1]}
62... Ra4 {[%clk 0:00:04.1]} 63. Nf3 {[%clk 0:00:05.6]} 63... Ra3+ {[%clk
0:00:04.3]} 64. Kf2 {[%clk 0:00:06.2]} 64... Ke4 {[%clk 0:00:04.7]} 65. Nd2+
{[%clk 0:00:06.8]} 65... Kf5 {[%clk 0:00:05.3]} 66. Nf1 {[%clk 0:00:07.5]} 66...
Kg4 {[%clk 0:00:04.8]} 67. Nh2+ {[%clk 0:00:08]} 67... Kh3 {[%clk 0:00:04.9]}
68. Nf3 {[%clk 0:00:08.9]} 68... Ra2+ {[%clk 0:00:05]} 69. Ke3 {[%clk
0:00:09.2]} 69... Kxg3 {[%clk 0:00:05.6]} 70. Nd4 {[%clk 0:00:09.7]} 70... Ra3+
{[%clk 0:00:05.9]} 71. Ke4 {[%clk 0:00:10.3]} 71... Ra4 {[%clk 0:00:06.5]} 72.
f5 {[%clk 0:00:10.3]} 72... gxf5+ {[%clk 0:00:06.1]} 0-1